bitfinex/quotes_ETHUSD_20220212
["timestamp","ask_amount","ask_price","bid_price","bid_amount"]
[1644692136660,3.37428,2974.8,2973.9,0.00345533]
[1644692136955,3.37428,2974.8,2974.6,0.01017699]
[1644692137955,3.37428,2974.8,2974.1,0.7068392]
[1644692138154,3.37428,2974.8,2974.6,0.01017709]
[1644692139212,3.37428,2974.8,2974.1,0.7068392]
[1644692139410,3.37428,2974.8,2973.9,0.00345533]
[1644692139711,3.37428,2974.8,2974.6,0.01017709]
[1644692141818,3.37428,2974.8,2974.6,0.01970725]
[1644692142015,3.37428,2974.8,2974.6,0.00953016]
[1644692142853,3.37428,2974.8,2973.9,0.00345533]
[1644692143053,0.88918859,2974.4,2974.1,0.0711572]
[1644692143853,3.37428,2974.8,2974.1,0.0711572]
[1644692144358,3.37428,2974.8,2974.1,0.04744666]
[1644692144956,0.65264592,2974.7,2974.1,0.04744666]
[1644692145155,3.20870044,2974.6,2974.1,0.04744666]
[1644692145355,3.20870044,2974.6,2974.1,0.04399133]
[1644692145556,3.20870044,2974.6,2974.3,0.00940238]
[1644692145898,3.08589214,2974.6,2974.3,0.00940238]
[1644692146502,3.08589214,2974.6,2974.1,0.03493678]
[1644692146703,3.08589214,2974.6,2974.3,0.00304761]
[1644692147503,3.08589214,2974.6,2974.1,0.03493678]
[1644692147903,3.64008348,2974.9,2974.1,0.03493678]
[1644692148104,0.168,2975.2,2974.1,0.6884]
[1644692148305,0.17564368,2975.4,2974.1,1.4734]
[1644692148503,0.168,2975.7,2974.1,1.4734]
[1644692148504,1.42980409,2975.3,2974.2,3.5]
[1644692148707,0.27639994,2975.8,2974.2,3.5]
[1644692148708,0.27639994,2975.8,2974.3,0.485]
[1644692148904,0.81969521,2975.4,2974.4,0.168]
[1644692149304,0.81969521,2975.4,2974.5,0.485]
[1644692149507,0.81969521,2975.4,2974.3,1.987]
[1644692149750,0.81969521,2975.4,2974.4,0.485]
[1644692150453,0.01017468,2975.3,2974.7,0.887386]
[1644692151254,0.168,2975.7,2974.7,0.887386]
[1644692151554,0.01017482,2975.3,2974.4,0.385]
[1644692152456,0.01017482,2975.3,2974.7,0.65190373]
[1644692152654,0.65943359,2975.4,2974.7,0.65190373]
[1644692152857,0.01017461,2975.3,2974.7,0.65190373]
[1644692153702,0.65943359,2975.4,2974.7,0.65190373]
[1644692153901,0.168,2975.7,2974.7,0.65190373]
[1644692154101,0.00954209,2975.3,2974.7,0.65190373]
[1644692154703,0.00954209,2975.3,2974.5,0.01291094]
[1644692154900,0.00954209,2975.3,2974.6,0.168]
[1644692155104,0.168,2975.7,2974.5,0.49791094]
[1644692155401,1.42978658,2975.6,2974.5,0.49791094]
[1644692155601,0.00920861,2975.3,2974.5,0.49791094]
[1644692155804,2.30040297,2975.2,2974.5,1.22617807]
[1644692156004,0.87061639,2975.2,2974.5,1.22617807]
[1644692157451,0.168,2975.7,2974.6,3.65060975]
[1644692157653,0.00920841,2975.3,2974.6,4.45928135]
[1644692157850,0.00920841,2975.3,2974.7,0.653]
[1644692158050,0.00920841,2975.3,2974.9,0.0144445]
[1644692158251,0.00920841,2975.3,2974.9,0.4994445]
[1644692158453,0.27639994,2975.8,2974.9,0.4994445]
[1644692158651,0.79015964,2975.4,2974.9,0.4994445]
[1644692158852,0.00959907,2975.3,2974.9,0.4994445]
[1644692159854,0.79015964,2975.4,2974.9,0.4994445]
[1644692160051,0.00959907,2975.3,2974.9,0.4994445]
[1644692160904,0.79015964,2975.4,2974.9,0.4994445]
[1644692161307,0.00959907,2975.3,2974.9,0.4994445]
[1644692162114,0.79015964,2975.4,2974.9,0.4994445]
[1644692162409,0.00959907,2975.3,2974.9,0.4994445]
[1644692163207,0.00959907,2975.3,2975.1,0.01440436]
[1644692163409,0.79015964,2975.4,2975.1,0.01440436]
[1644692163607,0.00958339,2975.3,2975.1,0.01440436]
[1644692164648,0.27639994,2975.8,2975.1,0.01440436]
[1644692164851,0.0095835,2975.3,2975.1,0.01440436]
[1644692165749,0.8047544,2975.6,2975.1,0.01440436]
[1644692165953,0.0095835,2975.3,2975.1,0.01440436]
[1644692166953,0.8047544,2975.6,2975.1,0.01440436]
[1644692167155,0.00958504,2975.3,2975.1,0.01440436]
[1644692167754,0.00958504,2975.3,2974.9,1.35637719]
[1644692168154,0.8047544,2975.6,2974.9,1.35637719]
[1644692168410,0.00958493,2975.3,2974.9,1.35637719]
[1644692169414,0.27639994,2975.8,2974.9,1.35637719]
[1644692169619,0.00958493,2975.3,2974.9,1.35637719]
[1644692170118,0.00958493,2975.3,2974.9,0.50143919]
[1644692170521,0.27639994,2975.8,2974.9,0.50143919]
[1644692170721,1.42961638,2975.7,2974.9,0.50143919]
[1644692170921,0.00958478,2975.3,2974.9,0.50143919]
[1644692171821,0.27639994,2975.8,2974.9,0.50143919]
[1644692172023,0.00958478,2975.3,2975.2,0.79267036]
[1644692172256,0.00958478,2975.3,2975.2,6.03523448]
[1644692172856,0.00958478,2975.3,2975.2,7.03523448]
[1644692173058,8.3107,2976.7,2975.2,7.03523448]
[1644692173258,2.19831691,2976.6,2975.9,0.88719158]
[1644692173458,1.42944487,2976.5,2975.9,0.88719158]
[1644692174057,1.42821273,2976.5,2975.5,0.485]
[1644692174259,1.42821273,2976.5,2975.6,0.168]
[1644692174459,0.0095831,2976.3,2975.6,0.168]
[1644692175058,0.0095831,2976.3,2975.8,0.75484962]
[1644692175362,0.76887204,2976.6,2975.8,0.75484962]
[1644692175558,0.00958355,2976.1,2975.8,0.75484962]
[1644692176504,0.76887204,2976.6,2975.8,0.75484962]
[1644692176905,0.00958355,2976.1,2975.8,0.75484962]
[1644692177805,0.76887204,2976.6,2975.8,0.75484962]
[1644692178008,0.00958349,2976.1,2975.8,0.77115121]
[1644692179006,0.76887204,2976.6,2975.8,0.77115121]
[1644692179207,0.00958349,2976.1,2975.8,0.77115121]
[1644692180253,0.76887204,2976.6,2975.8,0.77115121]
[1644692180453,0.00958349,2976.1,2975.8,0.77115121]
[1644692180659,0.00958349,2976.1,2975.8,0.76923521]
[1644692181259,0.00958349,2976.1,2975.8,0.76732323]
[1644692181458,0.76887204,2976.6,2975.8,0.76732323]
[1644692181658,0.0095835,2976.1,2975.8,0.76732323]
[1644692182660,0.168,2977.0,2975.8,0.76732323]
[1644692182859,0.0095835,2976.1,2975.8,0.76732323]
[1644692183265,0.0095835,2976.1,2976.0,0.01625574]
[1644692183704,0.168,2977.0,2976.0,0.01625574]
[1644692184104,0.00958332,2976.2,2976.0,0.01625574]
[1644692184518,0.00958332,2976.2,2976.0,0.01051259]
[1644692184911,0.85572385,2976.8,2976.0,0.00605806]
[1644692185111,0.85572385,2976.8,2976.0,0.00395431]
[1644692185312,0.00958322,2976.2,2976.0,0.00395431]
[1644692186310,0.85572385,2976.8,2976.0,0.00395431]
[1644692186513,0.00958322,2976.2,2976.0,0.00395431]
[1644692187353,0.85572385,2976.8,2976.0,0.00395431]
[1644692187754,0.00958322,2976.2,2976.0,0.00395431]
[1644692187953,0.00958322,2976.2,2975.8,0.93728133]
[1644692188658,0.85572385,2976.8,2975.8,0.93728133]
[1644692188857,0.0095834,2976.1,2975.8,4.54391538]
[1644692189058,0.0095834,2976.1,2975.8,0.93728133]
[1644692189661,0.0095834,2976.1,2975.8,0.18625969]
[1644692189859,0.168,2976.7,2975.8,0.01845969]
[1644692190060,0.00958349,2976.1,2975.8,0.01747515]
[1644692190558,0.168,2976.0,2975.8,0.01747515]
[1644692190762,0.78751272,2975.9,2975.8,0.01747515]
[1644692191908,0.00958358,2976.0,2975.8,0.01747515]
[1644692192308,0.168,2976.1,2975.8,0.01747515]
[1644692192509,0.00958367,2976.0,2975.8,0.01747515]
[1644692192910,0.7646325,2976.0,2975.8,0.01747515]
[1644692193110,0.7646325,2976.0,2975.3,0.27690987]
[1644692193312,0.7646325,2976.0,2975.3,0.02690987]
[1644692193513,0.75504883,2976.0,2975.3,0.02690987]
[1644692193710,0.76463242,2976.0,2975.3,0.02690987]
[1644692194754,0.75504883,2976.0,2975.3,0.02690987]
[1644692194956,0.00958404,2975.8,2975.3,0.02690987]
[1644692195854,0.75504883,2976.0,2975.3,0.02690987]
[1644692196061,0.00958422,2975.7,2975.3,0.02690987]
[1644692197061,0.75504883,2976.0,2975.3,0.02690987]
[1644692197259,0.00958432,2975.6,2975.3,0.02690987]
[1644692197861,0.00958432,2975.6,2975.2,0.19498743]
[1644692198261,0.75504883,2976.0,2975.2,0.19498743]
[1644692198506,0.0095845,2975.5,2975.2,0.02698743]
[1644692199409,0.75504883,2976.0,2975.2,0.02698743]
[1644692199709,0.00958459,2975.5,2975.2,0.02698743]
[1644692200613,0.75504883,2976.0,2975.2,0.02698743]
[1644692200811,0.0095846,2975.5,2975.2,0.02698743]
[1644692201813,0.7239239,2975.5,2975.2,0.02698743]
[1644692202013,0.7335085,2975.5,2975.2,0.02698743]
[1644692202457,1.42979864,2975.4,2975.2,0.02698743]
[1644692203058,1.42979864,2975.4,2974.6,0.19848289]
[1644692203259,0.77571094,2974.9,2974.6,0.19848289]
[1644692203658,0.77571094,2974.9,2974.6,0.19502756]
[1644692204659,0.77571094,2974.9,2974.6,0.19311993]
[1644692204860,0.77571094,2974.9,2974.6,0.02511592]
[1644692205059,1.4098,2975.6,2974.6,0.02511592]
[1644692205359,1.4298699,2975.5,2974.6,0.02511592]
[1644692205658,0.00958983,2975.3,2974.6,0.19311592]
[1644692205908,0.00958983,2975.3,2974.6,0.02511592]
[1644692206312,0.87117881,2975.1,2974.6,0.02511592]
[1644692208312,4.36184472,2975.3,2974.3,0.17145533]
[1644692208313,0.70840596,2974.6,2974.3,0.17145533]
[1644692208513,0.70840596,2974.6,2974.3,0.168]
[1644692208714,1.19340596,2974.6,2974.3,0.168]
[1644692209013,1.19340596,2974.6,2974.3,0.03825727]
[1644692209663,1.19340596,2974.6,2974.2,0.00967826]
[1644692210056,0.485,2974.6,2974.2,0.00967826]
[1644692210259,0.13819997,2974.8,2974.1,0.00345533]
[1644692210558,0.13819997,2974.8,2974.2,0.00967819]
[1644692211360,0.66714338,2974.6,2974.0,0.8761069]
[1644692211560,0.66714338,2974.6,2974.1,0.00345533]
[1644692211864,0.66714338,2974.6,2974.2,0.00957045]
[1644692212662,0.66714338,2974.6,2973.7,0.69535847]
[1644692212862,0.66714338,2974.6,2974.2,0.00957031]
[1644692213706,0.168,2975.1,2974.2,0.00957031]
[1644692213905,1.34679997,2975.2,2973.8,3.84419314]
[1644692214105,1.34679997,2975.2,2974.2,0.00957031]
[1644692214604,0.73051524,2974.9,2974.2,0.73158196]
[1644692214805,0.73051524,2974.9,2974.3,0.00345533]
[1644692216409,0.73051524,2974.9,2974.2,0.00957788]
[1644692216811,0.73051524,2974.9,2974.2,0.17757788]
[1644692217012,0.73051524,2974.9,2974.3,0.00345533]
[1644692217456,0.73051524,2974.9,2974.1,0.79539745]
[1644692217658,0.73051524,2974.9,2974.2,0.00957788]
[1644692217856,0.73051524,2974.9,2974.2,0.01303321]
[1644692218256,1.34679997,2975.2,2974.2,3.57783745]
[1644692218458,1.34679997,2975.2,2974.3,0.00345533]
[1644692219258,2.03915245,2975.2,2974.3,0.00345533]
[1644692221315,2.20715245,2975.2,2974.3,0.00345533]
[1644692224418,0.7317234,2974.7,2974.3,0.00345533]
[1644692224669,0.7317234,2974.7,2974.1,0.00345533]
[1644692224861,0.7317234,2974.7,2973.9,0.00345533]
[1644692225358,0.7317234,2974.7,2973.9,0.87926699]
[1644692227265,0.7317234,2974.7,2974.2,0.01017667]
[1644692228269,0.7317234,2974.7,2973.9,0.87926699]
[1644692228515,0.7317234,2974.7,2974.2,0.01017689]
[1644692229515,0.7317234,2974.7,2973.9,0.87926699]
[1644692229716,0.7317234,2974.7,2974.2,0.01017689]
[1644692230318,1.51479997,2975.2,2974.2,0.01017689]
[1644692230517,1.43007753,2975.1,2974.2,0.01017689]
[1644692230718,0.168,2975.0,2973.9,0.87926699]
[1644692230917,0.168,2975.0,2974.2,0.01017724]
[1644692231121,0.168,2975.1,2974.2,0.01017724]
[1644692231522,0.83617899,2974.7,2974.2,0.01017724]
[1644692231923,0.83617899,2974.7,2973.9,0.87926699]
[1644692232153,0.83617899,2974.7,2974.2,0.01017689]
[1644692233055,0.8349312,2974.7,2973.9,0.87926699]
[1644692233253,0.8349312,2974.7,2974.2,0.01017689]
[1644692234254,0.8349312,2974.7,2973.9,0.87926699]
[1644692234456,0.8349312,2974.7,2974.2,0.01017689]
[1644692234654,0.168,2975.1,2974.2,0.01017689]
[1644692234855,1.43007449,2975.0,2974.2,0.01017689]
[1644692235455,1.43007449,2975.0,2973.9,0.87926699]
[1644692235655,1.43007449,2975.0,2974.2,0.0101771]
[1644692235906,2.12499645,2975.0,2974.4,0.80410793]
[1644692236111,0.168,2975.1,2974.4,0.80756326]
[1644692236915,0.13819997,2975.2,2974.4,0.80756326]
[1644692237512,1.42995522,2975.1,2974.4,0.80756326]
[1644692237712,0.13819997,2975.2,2974.4,0.80756326]
[1644692239315,0.01018006,2975.3,2974.5,3.57373096]
[1644692239665,0.01018006,2975.3,2974.6,0.485]
[1644692239862,0.01018006,2975.3,2974.7,3.92034026]
[1644692240063,0.01018006,2975.3,2974.8,0.485]
[1644692240263,0.98903274,2976.1,2975.4,0.75778022]
[1644692240464,0.98903274,2976.1,2974.9,7.28752184]
[1644692240465,1.42969666,2976.0,2974.9,7.28752184]
[1644692240663,1.42969666,2976.0,2974.9,3.95492184]
[1644692240863,1.42969666,2976.0,2974.8,0.485]
[1644692241066,1.42969666,2976.0,2974.9,0.168]
[1644692241267,1.42969666,2976.0,2974.9,3.69762239]
[1644692241769,0.01018009,2975.6,2975.2,0.73666518]
[1644692241968,1.42972461,2975.5,2975.2,0.73666518]
[1644692242371,0.01018009,2975.6,2975.2,0.73666518]
[1644692242568,0.98903274,2976.1,2975.2,0.73666518]
[1644692242768,1.42970909,2976.0,2975.2,0.73666518]
[1644692242970,0.01018029,2975.5,2975.2,0.73666518]
[1644692243811,0.82103274,2976.1,2975.2,0.73666518]
[1644692244013,0.01018029,2975.5,2975.2,0.73666518]
[1644692244813,0.01018029,2975.5,2975.3,3.63290378]
[1644692245012,0.80137685,2976.6,2975.3,0.485]
[1644692245213,0.168,2976.4,2975.4,3.86489898]
[1644692245414,0.01018029,2975.5,2975.4,3.86489898]
[1644692245617,0.01018029,2975.5,2975.3,0.485]
[1644692245813,0.01018029,2975.5,2975.4,0.168]
[1644692246017,0.01018029,2975.5,2975.3,0.485]
[1644692246216,0.89433921,2976.0,2975.0,1.1913]
[1644692246417,1.42970914,2975.9,2975.0,1.1913]
[1644692246617,0.01018009,2975.6,2975.0,1.1913]
[1644692246818,1.42970914,2975.5,2975.0,1.1913]
[1644692247017,1.42970914,2975.5,2974.9,1.37775449]
[1644692247477,0.89433921,2976.0,2974.9,1.37775449]
[1644692247674,0.01018059,2975.3,2974.9,1.37775449]
[1644692248680,0.89433921,2976.0,2974.9,1.37775449]
[1644692248879,0.01018048,2975.3,2974.9,0.89275449]
[1644692249779,0.89433921,2976.0,2974.9,0.89275449]
[1644692249982,1.42967269,2975.9,2975.0,0.168]
[1644692250178,0.01018048,2975.3,2975.0,0.168]
[1644692250582,0.01018048,2975.3,2974.8,0.168]
[1644692251014,0.85076935,2975.5,2974.8,0.168]
[1644692251212,0.01018041,2975.3,2974.8,0.168]
[1644692252214,0.85076935,2975.5,2974.8,0.168]
[1644692252417,1.2252,2976.2,2974.8,1.84841]
[1644692252418,0.01018041,2975.3,2974.8,1.84841]
[1644692252615,0.01018041,2975.3,2974.9,0.485]
[1644692252814,0.01018041,2975.3,2975.0,0.168]
[1644692253216,0.01018041,2975.3,2975.1,0.84018]
[1644692253418,0.63337685,2976.5,2975.2,0.71876444]
[1644692253419,0.69999377,2975.8,2975.2,0.71876444]
[1644692253615,0.69999377,2975.8,2975.2,1.92996444]
[1644692253816,0.01018055,2975.3,2975.2,4.31279691]
[1644692254016,0.01018055,2975.3,2975.2,6.31281148]
[1644692254759,0.168,2976.5,2975.2,6.31281148]
[1644692254962,0.01018049,2975.4,2975.2,6.31281148]
[1644692255161,0.01018049,2975.4,2975.2,2.41496444]
[1644692255762,0.63002217,2976.1,2975.2,2.41496444]
[1644692255965,0.63002217,2976.1,2975.3,0.168]
[1644692255966,1.42954847,2976.0,2975.3,0.168]
[1644692256163,0.01018039,2975.4,2975.3,0.168]
[1644692257166,0.63002217,2976.1,2975.3,0.168]
[1644692257365,0.01018029,2975.5,2975.3,3.6034557]
[1644692257568,0.00890928,2975.5,2975.2,1.92996444]
[1644692258419,0.63002217,2976.1,2975.2,1.92996444]
[1644692258622,1.42962646,2976.0,2975.2,1.92996444]
[1644692261024,0.00422564,2975.7,2975.2,1.92996444]
[1644692261823,0.63002217,2976.1,2975.2,1.92996444]
[1644692262026,0.01018117,2975.6,2975.2,1.92996444]
[1644692263163,0.63002217,2976.1,2975.2,1.92996444]
[1644692263363,0.01018127,2975.5,2975.2,1.92996444]
[1644692264165,3.70222768,2976.5,2975.2,1.92996444]
[1644692264365,0.77756579,2976.3,2975.2,1.92996444]
[1644692264565,0.01018137,2975.5,2975.2,1.92996444]
[1644692265366,0.01018137,2975.5,2975.2,0.71876444]
[1644692265569,0.66726754,2975.8,2975.1,0.168]
[1644692265909,0.01018137,2975.5,2975.0,0.168]
[1644692266417,0.01018137,2975.5,2974.9,0.168]
[1644692266615,3.953,2976.5,2974.9,0.168]
[1644692266918,0.01018157,2975.4,2974.9,0.168]
[1644692267515,0.01018157,2975.4,2975.0,0.72572008]
[1644692267715,0.01018157,2975.4,2975.1,0.168]
[1644692267917,0.76995971,2976.1,2975.1,0.168]
[1644692268136,0.01018167,2975.3,2975.1,0.168]
[1644692268417,0.01018167,2975.3,2975.1,1.00821]
[1644692268818,0.01018167,2975.3,2975.1,1.79321]
[1644692269022,3.78607958,2976.5,2975.1,1.79321]
[1644692269219,2.0842866,2976.4,2975.7,0.62975628]
[1644692269425,0.01018167,2975.3,2975.2,1.2085]
[1644692269663,0.01018167,2975.3,2975.2,1.5085]
[1644692270259,0.168,2976.3,2975.2,1.5085]
[1644692270459,1.42957424,2976.2,2975.4,0.6545531]
[1644692271666,0.01018047,2975.9,2975.4,0.6545531]
[1644692272764,3.27753453,2976.3,2975.2,1.2085]
[1644692272964,0.01018077,2975.8,2975.3,0.168]
[1644692273814,3.27753453,2976.3,2975.3,0.168]
[1644692274015,0.01018097,2975.7,2975.5,0.83785057]
[1644692275115,0.168,2976.3,2975.5,0.83785057]
[1644692275315,0.01018087,2975.7,2975.5,0.83785057]
[1644692276117,0.01018087,2975.7,2975.5,0.78785057]
[1644692276317,0.168,2976.3,2975.5,0.78785057]
[1644692276517,0.01018087,2975.7,2975.5,0.78785057]
[1644692277557,0.168,2976.3,2975.5,0.78785057]
[1644692277856,1.42957695,2976.2,2975.5,0.78785057]
[1644692279066,1.42957695,2976.2,2975.2,1.3765]
[1644692279266,1.42957695,2976.2,2975.2,1.6765]
[1644692280064,0.01018611,2975.8,2975.2,1.6765]
[1644692280464,0.01018611,2975.8,2975.3,0.73073021]
[1644692281115,0.168,2976.3,2975.3,0.73073021]
[1644692281313,0.01018641,2975.7,2975.3,0.73073021]
[1644692282114,0.0019937,2975.7,2975.3,0.73073021]
[1644692282314,1.42957193,2976.2,2975.3,0.73073021]
[1644692284962,0.01018601,2975.9,2975.3,0.73073021]
[1644692285160,1.42957193,2975.8,2975.3,0.73073021]
[1644692285965,1.42957193,2975.8,2975.3,0.72937112]
[1644692286168,1.42957193,2975.7,2975.3,0.72937112]
[1644692286967,1.42957193,2975.7,2975.2,0.468]
[1644692287366,1.42957193,2975.6,2975.2,0.468]
[1644692287570,0.01018582,2975.8,2975.2,0.418]
[1644692287770,1.42961069,2975.7,2975.2,0.418]
[1644692288814,1.43979644,2975.8,2975.2,0.418]
[1644692289014,1.42961069,2975.7,2975.2,0.418]
[1644692289616,1.42961069,2975.6,2975.2,0.418]
[1644692289820,0.01018575,2975.8,2975.2,0.418]
[1644692290018,1.4296058,2975.7,2975.2,0.418]
[1644692290820,0.79971762,2975.9,2975.2,0.25]
[1644692290821,1.4296058,2975.6,2975.2,0.25]
[1644692291020,1.4296058,2975.5,2975.1,0.7781884]
[1644692291220,0.01018575,2975.8,2975.1,0.4781884]
[1644692291421,1.42962393,2975.7,2975.1,0.4781884]
[1644692291823,1.42962393,2975.7,2975.1,0.468]
[1644692292021,1.42962393,2975.8,2975.1,0.47818833]
[1644692292260,1.43980961,2975.8,2975.1,0.17818833]
[1644692292467,4.92962393,2975.7,2975.1,0.01018833]
[1644692292661,1.42962393,2975.6,2975.1,0.01018833]
[1644692292860,1.59762393,2975.6,2975.1,0.01018833]
[1644692293060,1.42962393,2975.5,2974.6,0.25]
[1644692293261,1.42962393,2975.5,2974.5,3.2344]
[1644692293461,0.65098593,2975.0,2974.8,0.04075743]
[1644692294367,0.65098593,2975.0,2974.4,0.17145533]
[1644692294567,0.65098593,2975.0,2974.8,0.01018873]
[1644692295569,0.65098593,2975.0,2974.4,0.17145533]
[1644692295765,0.65098593,2975.0,2974.8,0.01018873]
[1644692296716,0.65098593,2975.0,2974.4,0.17145533]
[1644692296916,0.65098593,2975.0,2974.8,0.01018873]
[1644692297918,0.65098593,2975.0,2974.4,0.00345533]
[1644692298116,0.65098593,2975.0,2974.8,0.01018873]
[1644692299218,3.18843052,2974.9,2974.4,0.00345533]
[1644692299418,1.2312,2975.4,2974.8,0.01018873]
[1644692299419,4.08723716,2975.3,2974.8,0.01018873]
[1644692299671,1.42992045,2975.2,2974.8,0.01018873]
[1644692299864,3.23489879,2975.1,2974.8,0.01018873]
[1644692300364,0.79603935,2975.0,2974.4,0.00345533]
[1644692300564,0.79603935,2975.0,2974.8,0.01018863]
[1644692301466,0.79603935,2975.0,2974.4,0.00345533]
[1644692301666,0.83707366,2974.5,2974.4,0.00345533]
[1644692301866,0.0345878,2974.5,2974.3,0.04076103]
[1644692302669,0.0345878,2974.5,2974.1,0.00345533]
[1644692302966,0.0345878,2974.5,2974.1,0.70230586]
[1644692304215,0.0345878,2974.5,2974.2,0.01018993]
[1644692305016,0.0345878,2974.5,2974.1,0.00345533]
[1644692305415,0.0345878,2974.5,2974.2,0.01018983]
[1644692306216,0.0345878,2974.5,2974.1,0.00345533]
[1644692306417,0.0345878,2974.5,2973.9,2.21846192]
[1644692306617,0.0345878,2974.5,2974.2,0.01018983]
[1644692307467,0.0345878,2974.5,2973.9,2.21846192]
[1644692307770,0.0345878,2974.5,2974.2,0.01018983]
[1644692308170,3.14271663,2974.5,2974.2,0.01018983]
[1644692308370,0.0345878,2974.5,2974.2,0.01018983]
[1644692308771,0.0345878,2974.5,2973.9,2.21846192]
[1644692308970,0.0345878,2974.5,2974.2,0.01018983]
[1644692311117,0.0345878,2974.5,2973.9,1.37205533]
[1644692311316,0.0345878,2974.5,2974.2,0.01018983]
[1644692312117,3.31256455,2974.5,2974.2,0.01018983]
[1644692312318,3.31256455,2974.5,2973.6,0.00345533]
[1644692312519,3.31256455,2974.5,2974.2,0.01018983]
[1644692313530,3.31256455,2974.5,2973.6,0.00345533]
[1644692313719,3.31256455,2974.5,2974.2,0.01018983]
[1644692314764,0.81417978,2974.0,2973.6,0.00345533]
[1644692314963,0.84876758,2974.0,2973.8,0.04076544]
[1644692315362,0.0345878,2974.0,2973.8,0.04076544]
[1644692315967,0.0345878,2974.0,2973.4,0.00345533]
[1644692316169,0.0345878,2974.0,2973.8,0.01019073]
[1644692317169,0.0345878,2974.0,2973.4,0.00345533]
[1644692317469,0.77992453,2973.9,2973.8,0.01019073]
[1644692317669,4.46626994,2973.9,2973.8,0.01019073]
[1644692317870,4.48356384,2973.9,2973.8,0.01019073]
[1644692318072,4.50085774,2973.9,2973.8,0.01019073]
[1644692318270,4.50085774,2973.9,2973.4,0.00345533]
[1644692318512,4.50085774,2973.9,2973.7,0.01019083]
[1644692318714,3.37689456,2973.8,2973.7,0.01019083]
[1644692318914,0.0345878,2973.8,2973.7,0.01019083]
[1644692319414,0.0345878,2973.8,2972.9,0.68693627]
[1644692319713,0.0345878,2973.8,2973.6,0.01019103]
[1644692320721,0.0345878,2973.8,2972.9,0.00345533]
[1644692320918,0.0345878,2973.8,2973.6,0.01019114]
[1644692321924,0.0345878,2973.8,2973.1,0.00345533]
[1644692322178,0.0345878,2973.8,2973.0,0.1681]
[1644692322472,0.0345878,2973.8,2972.5,0.1681]
[1644692322473,7.0,2973.5,2972.5,0.1681]
[1644692322673,7.0,2973.5,2972.7,2.09859714]
[1644692322674,0.1681,2973.4,2972.7,2.09859714]
[1644692322871,0.1681,2973.4,2972.6,0.04206334]
[1644692323073,0.2026878,2973.4,2972.6,0.04206334]
[1644692323276,0.74300192,2973.3,2972.6,0.70785175]
[1644692323570,0.74300192,2973.3,2972.7,0.04149491]
[1644692323970,0.77758972,2973.3,2972.7,0.04149491]
[1644692326417,0.0345878,2973.3,2972.7,0.04149491]
[1644692327017,0.01019117,2973.2,2972.9,0.01019254]
[1644692327417,0.01019117,2973.2,2973.0,0.485]
[1644692327917,0.0345878,2973.3,2973.0,0.485]
[1644692328117,0.01019132,2973.2,2973.0,0.49519234]
[1644692329116,0.0345878,2973.2,2973.0,0.485]
[1644692329316,0.04477912,2973.2,2973.0,0.49519234]
[1644692329517,0.04477912,2973.2,2973.1,0.86909666]
[1644692329773,4.3617,2974.1,2973.2,6.35]
[1644692329973,0.0345878,2974.1,2973.3,5.45090628]
[1644692330173,0.0345878,2974.1,2973.3,5.84720628]
[1644692330374,0.0345878,2974.1,2973.3,6.20795215]
[1644692330574,0.0345878,2974.1,2973.3,1.49426587]
[1644692331074,0.0345878,2974.1,2973.5,0.75707606]
[1644692331284,0.0345878,2974.1,2973.6,0.1681]
[1644692331475,0.0345878,2974.1,2973.5,1.24207606]
[1644692331678,0.0345878,2974.1,2972.9,1.1923]
[1644692331679,0.1681,2974.0,2972.9,1.1923]
[1644692331875,0.1681,2974.0,2973.0,0.00593308]
[1644692332078,0.2026878,2974.0,2973.0,0.00593308]
[1644692332879,0.70711101,2973.3,2972.7,0.04149491]
[1644692333079,0.0345878,2973.3,2973.0,0.00593308]
[1644692333915,0.0345878,2973.3,2972.7,1.20139491]
[1644692334117,0.04477885,2973.3,2973.0,0.01019224]
[1644692335115,0.0345878,2973.3,2972.8,0.04092649]
[1644692335317,0.04477885,2973.3,2973.0,0.01019224]
[1644692336319,0.04477885,2973.3,2972.8,0.04092649]
[1644692336322,0.0345878,2973.3,2972.8,0.04092649]
[1644692336526,0.04477885,2973.3,2973.0,0.01019224]
[1644692337464,0.0345878,2973.3,2972.8,0.04092649]
[1644692337663,0.1681,2973.2,2972.8,0.04092649]
[1644692337862,0.1681,2973.2,2973.0,0.01019224]
[1644692338062,0.67176192,2973.1,2973.0,0.01019224]
[1644692338862,0.67176192,2973.1,2972.7,0.04149491]
[1644692339064,0.67176192,2973.1,2972.9,0.01019244]
[1644692339065,0.70634972,2973.1,2972.9,0.01019244]
[1644692339864,0.70634972,2973.1,2972.7,0.04149491]
[1644692340265,0.70634972,2973.1,2972.9,0.01019254]
[1644692341216,0.0345878,2973.1,2972.7,0.04149491]
[1644692341414,0.0345878,2973.1,2972.9,0.01019254]
[1644692342416,0.0345878,2973.1,2972.7,0.04149491]
[1644692342618,0.0345878,2973.1,2972.9,0.01019254]
[1644692343115,0.0345878,2973.1,2973.0,0.02168001]
[1644692347770,0.0345878,2973.1,2972.9,0.75140442]
[1644692348414,0.0345878,2973.1,2972.9,0.74121198]
[1644692348611,0.0345878,2973.1,2972.9,0.75140452]
[1644692349415,0.0345878,2973.1,2972.9,0.03729256]
[1644692349614,0.0345878,2973.1,2972.9,0.02710002]
[1644692349813,0.0345878,2973.1,2972.9,0.03729256]
[1644692350814,0.0345878,2973.1,2972.9,0.02710002]
[1644692351019,0.0345878,2973.1,2972.9,0.78698495]
[1644692351219,0.0345878,2973.1,2972.9,0.79717749]
[1644692352027,0.0345878,2973.1,2972.9,0.78698495]
[1644692352279,0.0345878,2973.1,2973.0,3.54820155]
[1644692352480,0.0345878,2973.1,2973.0,4.23170155]
[1644692352680,0.0345878,2973.1,2973.0,0.6835]
[1644692353381,0.0345878,2973.1,2973.0,1.834]
[1644692353580,0.0345878,2973.1,2973.0,1.1505]
[1644692354281,0.03343767,2973.1,2973.0,1.6355]
[1644692354982,0.0172939,2973.3,2973.2,2.18575]
[1644692355181,0.0172939,2973.3,2973.2,6.81789336]
[1644692355682,0.0172939,2973.3,2973.2,7.09053336]
[1644692356323,0.0172939,2973.3,2973.2,3.24339]
[1644692357022,0.0172939,2973.3,2973.2,4.24339]
[1644692359323,0.0172939,2973.3,2973.2,7.91681068]
[1644692360365,0.0172939,2973.3,2973.2,4.24339]
[1644692360968,0.0172939,2973.3,2973.2,7.87482254]
[1644692361769,0.0172939,2973.3,2973.2,8.88932913]
[1644692362372,0.01019085,2973.4,2973.3,6.95]
[1644692362569,0.01019085,2973.4,2973.3,11.49699856]
[1644692362773,0.1681,2974.7,2973.3,12.49699856]
[1644692362971,1.43025873,2974.6,2973.8,0.25217]
[1644692363614,1.43025873,2974.6,2974.4,0.85486102]
[1644692364115,0.168,2974.9,2974.4,0.85486102]
[1644692364316,0.01018852,2974.6,2974.4,0.85486102]